fUSD/lending_fUSD_20251006
["ID","MTS","AMOUNT","RATE_DAILY","PERIOD"]
[389674891,1759785045019,-217.144851,0.00028767,30]
[389674892,1759785045027,-217.144851,0.00028767,30]
[389674893,1759785045036,-217.144851,0.00028767,30]
[389674894,1759785045046,-217.144851,0.00028767,30]
[389674895,1759785045055,-151.0,0.00028767,30]
[389674896,1759785045064,-155.787806,0.00028767,30]
[389674897,1759785045073,-217.144851,0.00028767,30]
[389674898,1759785045082,-217.144851,0.00028767,30]
[389674899,1759785045091,-217.144851,0.00028767,30]
[389674900,1759785045100,-152.19514,0.00028767,30]
[389674901,1759785045109,-151.0,0.00028767,30]
[389674902,1759785045119,-905.865682,0.00028767,30]
[389674903,1759785045128,-151.0,0.00028767,30]
[389674904,1759785045138,-905.865682,0.00028767,30]
[389674905,1759785045147,-151.0,0.00028767,30]
[389674906,1759785045156,-151.0,0.00028767,30]
[389674907,1759785045165,-151.0,0.00028767,30]
[389674908,1759785045174,-905.865682,0.00028767,30]
[389674909,1759785045184,-151.0,0.00028767,30]
[389674910,1759785045194,-151.0,0.00028767,30]
[389674911,1759785045204,-157.609489,0.00028767,30]
[389674912,1759785045214,-905.865682,0.00028767,30]
[389674913,1759785045226,-205.469212,0.00028767,30]
[389674914,1759785045235,-905.865682,0.00028767,30]
[389674915,1759785045244,-205.469212,0.00028767,30]
[389674916,1759785045253,-905.865682,0.00028767,30]
[389674917,1759785045263,-205.469212,0.00028767,30]
[389674918,1759785045272,-205.469212,0.00028767,30]
[389674919,1759785045282,-205.469212,0.00028767,30]
[389674920,1759785045291,-905.865682,0.00028767,30]
[389674921,1759785045300,-151.0,0.00028767,30]
[389674922,1759785045310,-905.865682,0.00028767,30]
[389674923,1759785045319,-205.469212,0.00028767,30]
[389674924,1759785045328,-151.0,0.00028767,30]
[389674925,1759785045337,-905.865682,0.00028767,30]
[389674926,1759785045346,-151.0,0.00028767,30]
[389674927,1759785045355,-215.882408,0.00028767,30]
[389674928,1759785045364,-151.0,0.00028767,30]
[389674929,1759785045376,-151.0,0.00028767,30]
[389674930,1759785045386,-205.469212,0.00028767,30]
[389674931,1759785045395,-905.865682,0.00028767,30]
[389674932,1759785045403,-205.469212,0.00028767,30]
[389674933,1759785045413,-905.865682,0.00028767,30]
[389674934,1759785045431,-205.469212,0.00028767,30]
[389674935,1759785045451,-905.865682,0.00028767,30]
[389674936,1759785045470,-205.469212,0.00028767,30]
[389674937,1759785045490,-205.469212,0.00028767,30]
[389674938,1759785045511,-205.469212,0.00028767,30]
[389674939,1759785045531,-151.0,0.00028767,30]
[389674940,1759785045550,-151.0,0.00028767,30]
[389674941,1759785045571,-151.0,0.00028767,30]
[389674942,1759785045591,-151.0,0.00028767,30]
[389674943,1759785045611,-151.0,0.00028767,30]
[389674944,1759785045630,-151.0,0.00028767,30]
[389674945,1759785045650,-151.0,0.00028767,30]
[389674946,1759785045672,-151.0,0.00028767,30]
[389674947,1759785045692,-151.0,0.00028767,30]
[389674948,1759785045703,-151.0,0.00028767,30]
[389674949,1759785045712,-151.0,0.00028767,30]
[389674950,1759785045721,-151.0,0.00028767,30]
[389674951,1759785045729,-151.0,0.00028767,30]
[389674952,1759785045739,-151.0,0.00028767,30]
[389674953,1759785045747,-151.0,0.00028767,30]
[389674954,1759785045756,-199.412609,0.00028767,30]
[389674955,1759785045765,-151.0,0.00028767,30]
[389674956,1759785045774,-151.0,0.00028767,30]
[389674957,1759785045783,-151.0,0.00028767,30]
[389674958,1759785045792,-151.0,0.00028767,30]
[389674959,1759785045801,-151.0,0.00028767,30]
[389674960,1759785045810,-151.0,0.00028767,30]
[389674961,1759785045824,-151.0,0.00028767,30]
[389674962,1759785045834,-151.0,0.00028767,30]
[389674963,1759785045843,-151.0,0.00028767,30]
[389674964,1759785045852,-174.207824,0.00028767,30]
[389674965,1759785045861,-191.636499,0.00028767,30]
[389674966,1759785045870,-191.636499,0.00028767,30]
[389674967,1759785045880,-191.636499,0.00028767,30]
[389674968,1759785045889,-191.636499,0.00028767,30]
[389674969,1759785045898,-191.636499,0.00028767,30]
[389674970,1759785045907,-191.636499,0.00028767,30]
[389674971,1759785045917,-191.636499,0.00028767,30]
[389674972,1759785045926,-191.636499,0.00028767,30]
[389674973,1759785045935,-191.636499,0.00028767,30]
[389674974,1759785045944,-191.636499,0.00028767,30]
[389674975,1759785045953,-191.636499,0.00028767,30]
[389674976,1759785045963,-191.636499,0.00028767,30]
[389674977,1759785045972,-151.0,0.00028767,30]
[389674978,1759785045981,-151.0,0.00028767,30]
[389674979,1759785045991,-151.0,0.00028767,30]
[389674981,1759785045999,-151.0,0.00028767,30]
[389674983,1759785046008,-151.0,0.00028767,30]
[389674984,1759785046019,-151.0,0.00028767,30]
[389674985,1759785046028,-151.0,0.00028767,30]
[389674986,1759785046037,-151.0,0.00028767,30]
[389674987,1759785046046,-276.34746,0.00028767,30]
[389674989,1759785046054,-151.0,0.00028767,30]
[389674990,1759785046063,-151.0,0.00028767,30]
[389674991,1759785046072,-151.0,0.00028767,30]
[389674992,1759785046081,-151.0,0.00028767,30]
[389674993,1759785046090,-151.0,0.00028767,30]
[389674994,1759785046099,-151.0,0.00028767,30]
[389674995,1759785046109,-151.0,0.00028767,30]
[389674996,1759785046118,-151.0,0.00028767,30]
[389674997,1759785046127,-151.0,0.00028767,30]
[389674998,1759785046136,-151.0,0.00028767,30]
[389674999,1759785046145,-151.0,0.00028767,30]
[389675000,1759785046153,-151.0,0.00028767,30]
[389675002,1759785046162,-317.756318,0.00028767,30]
[389675003,1759785046171,-317.756318,0.00028767,30]
[389675004,1759785046180,-151.0,0.00028767,30]
[389675006,1759785046189,-317.756318,0.00028767,30]
[389675007,1759785046199,-151.0,0.00028767,30]
[389675008,1759785046208,-317.756318,0.00028767,30]
[389675009,1759785046217,-151.0,0.00028767,30]
[389675011,1759785046226,-151.0,0.00028767,30]
[389675014,1759785046281,-317.756318,0.00028767,30]
[389675015,1759785046291,-317.756318,0.00028767,30]
[389675016,1759785046299,-151.0,0.00028767,30]
[389675017,1759785046308,-317.756318,0.00028767,30]
[389675018,1759785046317,-151.0,0.00028767,30]
[389675019,1759785046326,-317.756318,0.00028767,30]
[389675020,1759785046335,-151.0,0.00028767,30]
[389675021,1759785046344,-317.756318,0.00028767,30]
[389675022,1759785046353,-151.0,0.00028767,30]
[389675023,1759785046363,-317.756318,0.00028767,30]
[389675024,1759785046372,-151.0,0.00028767,30]
[389675025,1759785046381,-317.756318,0.00028767,30]
[389675026,1759785046390,-151.0,0.00028767,30]
[389675027,1759785046399,-151.0,0.00028767,30]
[389675028,1759785046408,-317.756318,0.00028767,30]
[389675029,1759785046417,-151.0,0.00028767,30]
[389675030,1759785046426,-151.0,0.00028767,30]
[389675031,1759785046435,-151.0,0.00028767,30]
[389675032,1759785046444,-317.756318,0.00028767,30]
[389675033,1759785046454,-151.0,0.00028767,30]
[389675034,1759785046463,-151.0,0.00028767,30]
[389675035,1759785046472,-317.756318,0.00028767,30]
[389675036,1759785046481,-151.0,0.00028767,30]
[389675037,1759785046490,-317.756318,0.00028767,30]
[389675038,1759785046498,-151.0,0.00028767,30]
[389675039,1759785046506,-151.0,0.00028767,30]
[389675040,1759785046514,-317.756318,0.00028767,30]
[389675041,1759785046521,-151.0,0.00028767,30]
[389675042,1759785046529,-151.0,0.00028767,30]
[389675043,1759785046538,-151.0,0.00028767,30]
[389675044,1759785046546,-232.323474,0.00028767,30]
[389675045,1759785046555,-151.0,0.00028767,30]
[389675046,1759785046564,-151.0,0.00028767,30]
[389675047,1759785046573,-151.0,0.00028767,30]
[389675048,1759785046582,-151.0,0.00028767,15]
[389675049,1759785046591,-151.0,0.00028767,30]
[389675050,1759785046601,-151.0,0.00028767,30]
[389675051,1759785046610,-151.0,0.00028767,15]
[389675052,1759785046619,-272.896116,0.00028767,30]
[389675053,1759785046628,-151.0,0.00028767,30]
[389675054,1759785046637,-151.0,0.00028767,15]
[389675055,1759785046646,-151.0,0.00028767,15]
[389675056,1759785046655,-151.0,0.00028767,30]
[389675057,1759785046664,-151.0,0.00028767,30]
[389675058,1759785046673,-151.0,0.00028767,30]
[389675059,1759785046682,-151.0,0.00028767,15]
[389675060,1759785046691,-236.86043,0.00028767,30]
[389675061,1759785046699,-151.0,0.00028767,30]
[389675062,1759785046709,-151.0,0.00028767,15]
[389675063,1759785046718,-151.0,0.00028767,15]
[389675064,1759785046727,-151.0,0.00028767,30]
[389675065,1759785046736,-235.209633,0.00028767,15]
[389675066,1759785046745,-151.0,0.00028767,30]
[389675067,1759785046753,-151.0,0.00028767,30]
[389675068,1759785046762,-151.0,0.00028767,30]
[389675069,1759785046771,-151.0,0.00028767,30]
[389675070,1759785046780,-151.0,0.00028767,30]
[389675071,1759785046789,-151.0,0.00028767,30]
[389675072,1759785046799,-294.72222,0.00028767,30]
[389675073,1759785046807,-207.394406,0.00028767,30]
[389675074,1759785046818,-151.0,0.00028767,30]
[389675075,1759785046828,-151.0,0.00028767,30]
[389675076,1759785046838,-151.0,0.00028767,30]
[389675077,1759785046849,-151.0,0.00028767,30]
[389675078,1759785046858,-151.0,0.00028767,30]
[389675079,1759785046868,-151.0,0.00028767,30]
[389675080,1759785046878,-151.0,0.00028767,30]
[389675081,1759785046888,-151.0,0.00028767,30]
[389675082,1759785046897,-198.603133,0.00028767,30]
[389675083,1759785046907,-225.452993,0.00028767,30]
[389675084,1759785046916,-151.0,0.00028767,30]
[389675085,1759785046925,-151.0,0.00028767,30]
[389675086,1759785046934,-151.0,0.00028767,30]
[389675087,1759785046943,-151.0,0.00028767,30]
[389675088,1759785046951,-151.0,0.00028767,30]
[389675089,1759785046958,-269.682844,0.00028767,30]
[389675090,1759785046966,-212.73721,0.00028767,30]
[389675091,1759785046974,-151.0,0.00028767,30]
[389675092,1759785046982,-151.0,0.00028767,30]
[389675093,1759785046990,-2021765.37927931,0.00028767,120]
[389675094,1759785047165,-12061.77416429,0.00028767,120]
[389675095,1759785047176,-116349.70518796,0.00028767,120]
[389675096,1759785047328,-151.0,0.00028767,30]
[389675097,1759785047337,-151.0,0.00028767,30]
[389675098,1759785047347,-151.0,0.00028767,30]
[389675099,1759785047356,-151.0,0.00028767,30]
[389675100,1759785047366,-151.0,0.00028767,30]
[389675101,1759785047375,-151.0,0.00028767,30]
[389675102,1759785047384,-2093.99999628,0.00028767,120]
[389675103,1759785047395,-633.65778041,0.00028767,120]
[389675104,1759785047406,-11453.78673343,0.00028767,120]
[389675105,1759785047417,-32267.79315474,0.00028767,120]
[389675106,1759785047791,-1.971e-05,0.00028767,120]
[389675107,1759785047806,-940.6270827,0.00028767,120]
[389675108,1759785047837,-151.0,0.00028767,30]
[389675109,1759785047846,-151.0,0.00028767,30]
[389675110,1759785047856,-151.0,0.00028767,30]
[389675111,1759785047866,-14354.54798075,0.00028767,120]
[389675112,1759785047878,-24810.4495887,0.00028767,120]
[389675113,1759785047889,-715139.63389351,0.00028767,120]
[389675114,1759785047902,-161792.18265321,0.00028767,120]
[389675115,1759785047914,-166988.89446177,0.00028767,120]
[389675116,1759785047924,-1256.40903433,0.00028767,120]
[389675119,1759785908209,694688.19663595,0.00015,2]
[389675121,1759785967353,364.1670545,0.00011,2]
[389675124,1759786009117,-272.00415734,0.000199,2]
[389675125,1759786009141,-106.46400381,0.0002,2]
[389675147,1759786231949,-300.0,0.00019999,2]
[389675149,1759786231959,-300.0,0.00019999,2]
[389675150,1759786231968,-150.81041459,0.00019999,2]
[389675152,1759786232187,-1049.18958541,0.00019999,2]
[389675153,1759786232196,-150.0,0.00019999,2]
[389675154,1759786232206,-1000.52076328,0.0002,2]
[389675155,1759786232215,-1128.06116711,0.0002,2]
[389675156,1759786232224,-1512.82303355,0.0002,2]
[389675157,1759786232234,-5709.32390305,0.0002,2]
[389675158,1759786232243,-605.72564626,0.00020005,2]
[389675159,1759786232252,-9174.23290278,0.0002001,2]
[389675160,1759786232261,-7507.26524879,0.000214,2]
[389675161,1759786232270,-150.0,0.00021776,2]
[389675162,1759786232280,-420.0,0.00021777,2]
[389675163,1759786232288,-1161.0,0.00021881,2]
[389675164,1759786232298,-2000.0,0.00022,2]
[389675165,1759786232307,-193.0,0.00022,2]
[389675166,1759786232316,-272.00415733,0.00023425,2]
[389675167,1759786232325,-587.0,0.00023712,2]
[389675168,1759786232334,-166.66,0.00023886,2]
[389675169,1759786232343,-250.2495,0.00024,2]
[389675170,1759786232352,-1036.68,0.00025,2]
[389675171,1759786232362,-1036.68,0.000255,2]
[389675172,1759786232370,-823.0,0.0002582,2]
[389675173,1759786232379,-150.0,0.00025866,4]
[389675174,1759786232388,-150.0,0.00025866,4]
[389675175,1759786232398,-150.0,0.00025866,4]
[389675176,1759786232406,-150.0,0.00025866,4]
[389675177,1759786232416,-150.0,0.00025866,4]
[389675178,1759786232425,-150.0,0.00025866,4]
[389675179,1759786232434,-276.12,0.00025866,2]
[389675180,1759786232443,-370.68887098,0.00025893,2]
[389675181,1759786232452,-1000.0,0.00026064,2]
[389675182,1759786232461,-250.0,0.00026119,2]
[389675183,1759786232471,-276.12,0.0002614,2]
[389675184,1759786232481,-5000.0,0.00026154,2]
[389675185,1759786232492,-524.35,0.00026319,2]
[389675186,1759786232501,-1807.99,0.00026329,2]
[389675187,1759786232510,-519.57,0.00026332,2]
[389675188,1759786232519,-532.03,0.00026355,2]
[389675189,1759786232529,-522.35,0.00026359,2]
[389675190,1759786232539,-526.87,0.00026413,2]
[389675191,1759786232548,-276.12,0.00026414,2]
[389675192,1759786232562,-522.61,0.00026422,2]
[389675193,1759786232572,-519.27,0.00026437,2]
[389675194,1759786232581,-532.94,0.00026462,2]
[389675195,1759786232591,-150.0,0.00026466,2]
[389675196,1759786232599,-515.12,0.0002647,2]
[389675197,1759786232608,-532.47,0.00026488,2]
[389675198,1759786232618,-528.59,0.00026513,2]
[389675199,1759786232627,-529.06,0.00026521,2]
[389675200,1759786232636,-517.78,0.00026535,2]
[389675201,1759786232646,-200.0,0.00026542,2]
[389675202,1759786232655,-151.0,0.00026542,2]
[389675203,1759786232664,-155.02238158,0.00026542,2]
[389675204,1759786232673,-151.0,0.00026542,2]
[389675205,1759786232682,-151.0,0.00026542,2]
[389675206,1759786232691,-151.0,0.00026542,2]
[389675207,1759786232700,-151.0,0.00026542,2]
[389675208,1759786232710,-151.0,0.00026542,2]
[389675209,1759786232720,-151.0,0.00026542,2]
[389675210,1759786232729,-151.0,0.00026542,2]
[389675211,1759786232739,-200.0,0.00026542,2]
[389675212,1759786232748,-151.0,0.00026542,2]
[389675213,1759786232757,-151.0,0.00026542,2]
[389675214,1759786232766,-151.0,0.00026542,2]
[389675215,1759786232775,-151.0,0.00026542,2]
[389675216,1759786232784,-151.0,0.00026542,2]
[389675217,1759786232793,-151.0,0.00026542,2]
[389675218,1759786232803,-151.0,0.00026542,2]
[389675219,1759786232811,-151.0,0.00026542,2]
[389675220,1759786232821,-151.0,0.00026542,2]
[389675221,1759786232830,-151.0,0.00026542,2]
[389675222,1759786232839,-151.0,0.00026542,2]
[389675223,1759786232848,-151.0,0.00026542,2]
[389675224,1759786232857,-151.0,0.00026542,2]
[389675225,1759786232868,-151.0,0.00026542,2]
[389675226,1759786232877,-500.0,0.00026542,2]
[389675227,1759786232896,-151.0,0.00026542,2]
[389675228,1759786232906,-500.0,0.00026542,2]
[389675229,1759786232916,-151.0,0.00026542,2]
[389675230,1759786232926,-151.0,0.00026542,2]
[389675231,1759786232936,-500.0,0.00026542,2]
[389675232,1759786232945,-151.0,0.00026542,2]
[389675233,1759786232954,-151.0,0.00026542,2]
[389675234,1759786232964,-500.0,0.00026542,2]
[389675235,1759786232973,-151.0,0.00026542,2]
[389675236,1759786232982,-151.0,0.00026542,2]
[389675237,1759786232992,-500.0,0.00026542,2]
[389675238,1759786233002,-151.0,0.00026542,2]
[389675239,1759786233011,-151.0,0.00026542,2]
[389675240,1759786233021,-500.0,0.00026542,2]
[389675241,1759786233030,-151.0,0.00026542,2]
[389675242,1759786233040,-151.0,0.00026542,2]
[389675243,1759786233049,-500.0,0.00026542,2]
[389675244,1759786233059,-151.0,0.00026542,2]
[389675245,1759786233068,-151.0,0.00026542,2]
[389675246,1759786233077,-500.0,0.00026542,2]
[389675247,1759786233087,-151.0,0.00026542,2]
[389675248,1759786233096,-151.0,0.00026542,2]
[389675249,1759786233106,-500.0,0.00026542,2]
[389675250,1759786233115,-500.0,0.00026542,2]
[389675251,1759786233124,-151.0,0.00026542,2]
[389675252,1759786233135,-151.0,0.00026542,2]
[389675253,1759786233144,-500.0,0.00026542,2]
[389675254,1759786233153,-500.0,0.00026542,2]
[389675255,1759786233163,-151.0,0.00026542,2]
[389675256,1759786233172,-500.0,0.00026542,2]
[389675257,1759786233181,-500.0,0.00026542,2]
[389675258,1759786233191,-151.0,0.00026542,2]
[389675259,1759786233200,-500.0,0.00026542,2]
[389675260,1759786233209,-500.0,0.00026542,2]
[389675261,1759786233219,-151.0,0.00026542,2]
[389675262,1759786233229,-500.0,0.00026542,2]
[389675263,1759786233238,-151.0,0.00026542,2]
[389675264,1759786233247,-388.20924171,0.00026542,2]
[389675265,1759786233257,-500.0,0.00026542,2]
[389675266,1759786233266,-151.0,0.00026542,2]
[389675267,1759786233276,-500.0,0.00026542,2]
[389675268,1759786233286,-151.0,0.00026542,2]
[389675269,1759786233295,-500.0,0.00026542,2]
[389675270,1759786233304,-151.0,0.00026542,2]
[389675271,1759786233313,-200.0,0.00026542,2]
[389675272,1759786233323,-500.0,0.00026542,2]
[389675273,1759786233332,-151.0,0.00026542,2]
[389675274,1759786233341,-500.0,0.00026542,2]
[389675275,1759786233351,-151.0,0.00026542,2]
[389675276,1759786233361,-500.0,0.00026542,2]
[389675277,1759786233370,-151.0,0.00026542,2]
[389675278,1759786233379,-500.0,0.00026542,2]
[389675279,1759786233388,-151.0,0.00026542,2]
[389675280,1759786233397,-500.0,0.00026542,2]
[389675281,1759786233407,-151.0,0.00026542,2]
[389675282,1759786233416,-500.0,0.00026542,2]
[389675283,1759786233426,-500.0,0.00026542,2]
[389675284,1759786233435,-150.0,0.00026549,2]
[389675285,1759786233445,-1000.0,0.00026557,2]
[389675286,1759786233454,-534.99,0.00026558,2]
[389675287,1759786233464,-532.26,0.00026563,2]
[389675288,1759786233475,-435.17674258,0.00026586,2]
[389675289,1759786233488,-528.75,0.00026602,2]
[389675290,1759786233497,-529.22,0.00026602,2]
[389675291,1759786233507,-535.39,0.00026602,2]
[389675292,1759786233518,-500.0,0.0002664,2]
[389675293,1759786233527,-447.58018281,0.0002664,2]
[389675294,1759786233537,-500.0,0.0002664,2]
[389675295,1759786233551,-500.0,0.0002664,2]
[389675296,1759786233562,-520.21,0.00026653,2]
[389675297,1759786233571,-527.83,0.00026655,2]
[389675298,1759786233581,-276.12,0.00026688,2]
[389675299,1759786233590,-1000.0,0.00026703,2]
[389675300,1759786233599,-779.88,0.00026703,120]
[389675301,1759786233608,-150.0,0.00026703,7]
[389675302,1759786233617,-521.8,0.00026703,2]
[389675303,1759786233626,-522.5,0.00026703,2]
[389675304,1759786233635,-515.84,0.00026703,2]
[389675305,1759786233644,-518.2,0.00026703,2]
[389675306,1759786233653,-519.9,0.00026703,2]
[389675307,1759786233662,-533.9,0.00026703,2]
[389675308,1759786233670,-528.83,0.00026703,2]
[389675309,1759786233679,-514.85,0.00026704,2]
[389675310,1759786233688,-510.39247587,0.00026707,2]
[389675311,1759786233697,-535.48,0.00026716,2]
[389675312,1759786233706,-1177.523,0.00026716,14]
[389675313,1759786233715,-585.60820915,0.00026828,2]
[389675314,1759786233724,-1000.0,0.00026849,2]
[389675315,1759786233733,-660.82394244,0.00026948,2]
[389675316,1759786233742,-8197.38,0.00026949,2]
[389675317,1759786233751,-272.00415733,0.0002695,2]
[389675318,1759786233760,-276.16,0.00026962,2]
[389675319,1759786233769,-169.07,0.00027065,2]
[389675320,1759786233777,-736.03967572,0.00027069,2]
[389675321,1759786233786,-1000.0,0.000271,2]
[389675322,1759786233795,-6717.92,0.00027107,2]
[389675323,1759786233804,-500.0,0.00027188,2]
[389675324,1759786233813,-811.25540901,0.00027189,2]
[389675325,1759786233822,-155.56,0.00027255,7]
[389675326,1759786233831,-150.0,0.00027303,4]
[389675327,1759786233840,-150.0,0.00027303,4]
[389675328,1759786233849,-886.47114229,0.0002731,2]
[389675329,1759786233858,-249.80611179,0.00027329,2]
[389675330,1759786233867,-230.0,0.00027329,2]
[389675331,1759786233876,-1000.0,0.00027344,2]
[389675332,1759786233886,-155.56,0.00027355,7]
[389675333,1759786233895,-1500.0,0.00027397,16]
[389675334,1759786233904,-203.17015854,0.00027397,2]
[389675335,1759786233913,-961.68687558,0.00027431,2]
[389675336,1759786233922,-155.56,0.00027455,15]
[389675337,1759786233931,-489.68,0.000275,5]
[389675338,1759786233940,-208.0,0.000275,2]
[389675339,1759786233949,-1036.90260886,0.00027551,2]
[389675340,1759786233958,-155.56,0.00027555,15]
[389675341,1759786233967,-155.56,0.00027655,15]
[389675342,1759786233977,-1112.11834215,0.00027672,2]
[389675343,1759786233986,-229.0,0.000277,7]
[389675344,1759786233994,-155.56,0.00027755,15]
[389675345,1759786234005,-1187.33407544,0.00027792,2]
[389675346,1759786234014,-584.38000121,0.00027808,2]
[389675347,1759786234023,-155.56,0.00027855,15]
[389675348,1759786234033,-1000.0,0.00027856,2]
[389675349,1759786234042,-1262.54980872,0.00027913,2]
[389675350,1759786234051,-155.56,0.00027955,15]
[389675351,1759786234061,-151.0,0.0002796,2]
[389675352,1759786234070,-578.20924308,0.0002796,2]
[389675353,1759786234080,-500.0,0.0002796,2]
[389675354,1759786234089,-601.3376128,0.0002796,2]
[389675355,1759786234099,-151.0,0.0002796,2]
[389675356,1759786234108,-500.0,0.0002796,2]
[389675357,1759786234117,-295.53822389,0.0002796,2]
[389675358,1759786234126,-170.5811736,0.0002796,2]
[389675359,1759786234136,-7965.41053268,0.0002796,2]
[389675360,1759786234145,-151.0,0.0002796,2]
[389675361,1759786234154,-151.0,0.0002796,2]
[389675362,1759786234163,-151.0,0.0002796,2]
[389675363,1759786234172,-322.6107,0.0002796,2]
[389675364,1759786234182,-156.19191373,0.0002796,2]
[389675365,1759786234191,-2000.0,0.0002796,2]
[389675366,1759786234200,-1712.65782448,0.0002796,2]
[389675367,1759786234210,-231.28369723,0.0002796,2]
[389675368,1759786234219,-2500.0,0.00027979,7]
[389675369,1759786234228,-2500.0,0.00027988,7]
[389675370,1759786234237,-2500.0,0.00027997,7]
[389675371,1759786234246,-10428.45243834,0.00028,60]
[389675372,1759786234255,-520.86,0.00028006,2]
[389675373,1759786234264,-2500.0,0.00028006,7]
[389675374,1759786234274,-229.0,0.00028013,2]
[389675375,1759786234283,-520.63,0.00028015,2]
[389675376,1759786234292,-8260.13072239,0.00028015,2]
[389675377,1759786234301,-1000.0,0.00028028,2]
[389675378,1759786234310,-1337.76554201,0.00028034,2]
[389675379,1759786234320,-155.56,0.00028055,15]
[389675380,1759786234329,-8565.75555911,0.0002807,2]
[389675381,1759786234338,-158.13,0.00028073,2]
[389675382,1759786234347,-229.0,0.00028076,7]
[389675383,1759786234356,-1150.0,0.00028115,2]
[389675384,1759786234365,-6115.96981508,0.00028125,2]
[389675385,1759786234384,-369.02923175,0.00028125,2]
[389675386,1759786234399,-2397.68946797,0.00028125,2]
[389675387,1759786234409,-1000.0,0.00028132,2]
[389675388,1759786234418,-1412.98127529,0.00028154,2]
[389675389,1759786234427,-155.56,0.00028155,15]
[389675390,1759786234435,-9211.34798985,0.0002818,2]
[389675391,1759786234444,-393.17872503,0.00028186,2]
[389675392,1759786234453,-72.5020632,0.00028196,2]
[389675393,1759786234465,-94.1579368,0.00028196,2]
[389675394,1759786234474,-200.0,0.000282,10]
[389675395,1759786234486,-205.56,0.00028218,2]
[389675396,1759786234495,-4374.37253137,0.00028235,2]
[389675397,1759786234560,-229.0,0.00028248,2]
[389675398,1759786234571,-155.56,0.00028255,15]
[389675399,1759786234580,-1425.0,0.00028255,2]
[389675400,1759786234589,-1488.19700858,0.00028275,2]
[389675401,1759786234598,-500.0,0.000283,10]
[389675402,1759786234607,-175.72,0.00028329,2]
[389675403,1759786234616,-1197.76,0.00028329,2]
[389675404,1759786234625,-1089.18,0.00028329,2]
[389675405,1759786234635,-412.91,0.00028329,2]
[389675406,1759786234644,-167.94,0.00028329,2]
[389675407,1759786234653,-150.0,0.00028329,2]
[389675408,1759786234662,-175.72,0.00028329,2]
[389675409,1759786234671,-175.72,0.00028329,2]
[389675410,1759786234680,-500.0,0.00028341,15]
[389675411,1759786234689,-155.56,0.00028355,15]
[389675412,1759786234699,-682.8855216,0.00028371,2]
[389675413,1759786234708,-1563.41274186,0.00028395,2]
[389675414,1759786234717,-1000.0,0.00028396,2]
[389675415,1759786234726,-300.0,0.00028396,2]
[389675416,1759786234735,-800.0,0.000284,10]
[389675417,1759786234744,-722.06298046,0.00028413,7]
[389675418,1759786234753,-155.56,0.00028455,15]
[389675419,1759786234762,-1000.0,0.00028488,2]
[389675420,1759786234772,-462.0,0.00028495,120]
[389675421,1759786234781,-1000.0,0.000285,10]
[389675422,1759786234790,-151.0,0.00028508,2]
[389675423,1759786234799,-1638.62847515,0.00028516,2]
[389675424,1759786234808,-1224.83069321,0.00028522,2]
[389675425,1759786236046,-200.16930679,0.00028522,2]
[389675426,1759786236056,-155.56,0.00028555,15]